[Event "January 9 Early 2024"]
[Site "https://www.chess.com"]
[Date "2024.01.11"]
[Round "3"]
[White "Belov, Alexei"]
[Black "Essing, Arnold"]
[Result "1-0"]
[Board "152"]
[TimeControl "180+1"]
[WhiteFideId "4128206"]
[BlackFideId "4619862"]
[WhiteElo "2550"]
[BlackElo "2269"]
[WhiteTeam "RUS"]
[BlackTeam "GER"]
[WhiteClock "0:00:34"]
[BlackClock "0:00:06"]

1. e4 {[%clk 0:02:57]}  Nf6 {[%clk 0:03:00]} 2. e5 {[%clk 0:02:56]}  Nd5 {[%clk 0:03:00]} 3. d4 {[%clk 0:02:57]}  d6 {[%clk 0:03:00]} 4. Nf3 {[%clk 0:02:57]}  g6 {[%clk 0:03:00]} 5. Bc4 {[%clk 0:02:57]}  Nb6 {[%clk 0:03:00]} 6. Bb3 {[%clk 0:02:57]}  Bg7 {[%clk 0:03:00]} 7. O-O {[%clk 0:02:56]}  O-O {[%clk 0:03:00]} 8. c3 {[%clk 0:02:54]}  Bg4 {[%clk 0:02:58]} 9. exd6 {[%clk 0:02:54]}  cxd6 {[%clk 0:02:56]} 10. h3 {[%clk 0:02:54]}  Bxf3 {[%clk 0:02:56]} 11. Qxf3 {[%clk 0:02:55]}  Nc6 {[%clk 0:02:56]} 12. Nd2 {[%clk 0:02:43]}  e5 {[%clk 0:02:52]} 13. dxe5 {[%clk 0:02:43]}  dxe5 {[%clk 0:02:52]} 14. Ne4 {[%clk 0:02:43]}  h6 {[%clk 0:02:50]} 15. Be3 {[%clk 0:02:35]}  Qc7 {[%clk 0:02:26]} 16. Nf6+ {[%clk 0:02:24]}  Kh8 {[%clk 0:02:21]} 17. Rad1 {[%clk 0:02:05]}  Qe7 {[%clk 0:02:14]} 18. Nd5 {[%clk 0:01:41]}  Nxd5 {[%clk 0:02:13]} 19. Bxd5 {[%clk 0:01:41]}  Rac8 {[%clk 0:02:06]} 20. b4 {[%clk 0:01:36]}  e4 {[%clk 0:01:21]} 21. Bxe4 {[%clk 0:01:29]}  Ne5 {[%clk 0:01:21]} 22. Qg3 {[%clk 0:01:00]}  b6 {[%clk 0:01:06]} 23. Bd4 {[%clk 0:00:57]}  Qe6 {[%clk 0:00:47]} 24. Rfe1 {[%clk 0:00:55]}  Rfe8 {[%clk 0:00:39]} 25. f4 {[%clk 0:00:51]}  Nc4 {[%clk 0:00:26]} 26. Bb7 {[%clk 0:00:48]}  Bxd4+ {[%clk 0:00:19]} 27. cxd4 {[%clk 0:00:48]}  Qd6 {[%clk 0:00:15]} 28. Bxc8 {[%clk 0:00:46]}  Rxc8 {[%clk 0:00:16]} 29. Qh4 {[%clk 0:00:41]}  Kg7 {[%clk 0:00:13]} 30. f5 {[%clk 0:00:38]}  g5 {[%clk 0:00:13]} 31. Qf2 {[%clk 0:00:37]}  Qf6 {[%clk 0:00:12]} 32. d5 {[%clk 0:00:36]}  a6 {[%clk 0:00:10]} 33. Qd4 {[%clk 0:00:35]}  b5 {[%clk 0:00:09]} 34. d6 {[%clk 0:00:35]}  Rd8 {[%clk 0:00:08]} 35. d7 {[%clk 0:00:35]}  Qxd4+ {[%clk 0:00:05]} 36. Rxd4 {[%clk 0:00:35]}  Kf6 {[%clk 0:00:06]} 37. Re8 {[%clk 0:00:34]} 1-0

[Event "January 9 Early 2024"]
[Site "https://www.chess.com"]
[Date "2024.01.11"]
[Round "3"]
[White "Santiago, Yago De Moura"]
[Black "Shuvalov, Evgenij"]
[Result "1/2-1/2"]
[Board "159"]
[TimeControl "180+1"]
[WhiteFideId "2103877"]
[BlackFideId "4187237"]
[WhiteElo "2795"]
[BlackElo "2519"]
[WhiteTeam "BRA"]
[BlackTeam "FID"]
[WhiteClock "0:00:31"]
[BlackClock "0:00:10"]

1. d4 {[%clk 0:02:56]}  Nf6 {[%clk 0:02:58]} 2. c4 {[%clk 0:02:56]}  g6 {[%clk 0:02:58]} 3. Nc3 {[%clk 0:02:56]}  d5 {[%clk 0:02:58]} 4. Nf3 {[%clk 0:02:56]}  Bg7 {[%clk 0:02:58]} 5. h4 {[%clk 0:02:57]}  dxc4 {[%clk 0:02:53]} 6. e4 {[%clk 0:02:57]}  c5 {[%clk 0:02:48]} 7. d5 {[%clk 0:02:57]}  O-O {[%clk 0:02:46]} 8. h5 {[%clk 0:02:57]}  Nxh5 {[%clk 0:02:35]} 9. Bxc4 {[%clk 0:02:40]}  Bg4 {[%clk 0:02:22]} 10. Be2 {[%clk 0:02:39]}  Nd7 {[%clk 0:02:08]} 11. Qc2 {[%clk 0:02:37]}  e6 {[%clk 0:02:01]} 12. Bg5 {[%clk 0:02:34]}  Qa5 {[%clk 0:01:55]} 13. Bd2 {[%clk 0:02:31]}  Qb6 {[%clk 0:01:45]} 14. O-O-O {[%clk 0:02:29]}  Nhf6 {[%clk 0:01:22]} 15. Rh4 {[%clk 0:02:22]}  h5 {[%clk 0:01:18]} 16. Be3 {[%clk 0:02:08]}  exd5 {[%clk 0:01:15]} 17. Nxd5 {[%clk 0:02:05]}  Nxd5 {[%clk 0:01:14]} 18. Rxd5 {[%clk 0:02:06]}  Be6 {[%clk 0:01:09]} 19. g4 {[%clk 0:01:26]}  Bxd5 {[%clk 0:00:59]} 20. exd5 {[%clk 0:01:25]}  Nf6 {[%clk 0:00:56]} 21. gxh5 {[%clk 0:01:24]}  Nxh5 {[%clk 0:00:56]} 22. Ng5 {[%clk 0:01:21]}  Nf6 {[%clk 0:00:37]} 23. Bc4 {[%clk 0:01:19]}  Qd6 {[%clk 0:00:31]} 24. Bf4 {[%clk 0:01:14]}  Qd7 {[%clk 0:00:31]} 25. f3 {[%clk 0:01:10]}  b5 {[%clk 0:00:27]} 26. Qh2 {[%clk 0:00:50]}  bxc4 {[%clk 0:00:23]} 27. Be5 {[%clk 0:00:50]}  Rfe8 {[%clk 0:00:15]} 28. Bxf6 {[%clk 0:00:50]}  Bxf6 {[%clk 0:00:16]} 29. Rh8+ {[%clk 0:00:50]}  Bxh8 {[%clk 0:00:15]} 30. Qh7+ {[%clk 0:00:51]}  Kf8 {[%clk 0:00:15]} 31. Qxh8+ {[%clk 0:00:52]}  Ke7 {[%clk 0:00:16]} 32. Qg7 {[%clk 0:00:42]}  Qf5 {[%clk 0:00:14]} 33. Ne4 {[%clk 0:00:39]}  Rab8 {[%clk 0:00:12]} 34. Qc3 {[%clk 0:00:36]}  Kd7 {[%clk 0:00:10]} 35. Qa5 {[%clk 0:00:33]}  Rxe4 {[%clk 0:00:09]} 36. Qxa7+ {[%clk 0:00:33]}  Kc8 {[%clk 0:00:09]} 37. Qxc5+ {[%clk 0:00:33]}  Kd8 {[%clk 0:00:09]} 38. Qd6+ {[%clk 0:00:33]}  Kc8 {[%clk 0:00:09]} 39. Qc6+ {[%clk 0:00:33]}  Kd8 {[%clk 0:00:09]} 40. Qd6+ {[%clk 0:00:34]}  Kc8 {[%clk 0:00:10]} 41. Qc6+ {[%clk 0:00:31]}  Kd8 {[%clk 0:00:10]} 42. Qd6+ {[%clk 0:00:31]} 1/2-1/2

[Event "January 9 Early 2024"]
[Site "https://www.chess.com"]
[Date "2024.01.11"]
[Round "3"]
[White "Lymar, Vladislav"]
[Black "Vela Frago, Alberto"]
[Result "0-1"]
[Board "161"]
[TimeControl "180+1"]
[WhiteFideId "14162180"]
[BlackFideId "24531685"]
[WhiteElo "2533"]
[BlackElo "2294"]
[WhiteTeam "UKR"]
[BlackTeam "ESP"]
[WhiteClock "0:00:02"]
[BlackClock "0:00:30"]

1. d4 {[%clk 0:03:00]}  Nf6 {[%clk 0:02:57]} 2. c4 {[%clk 0:02:59]}  e6 {[%clk 0:02:56]} 3. Bf4 {[%clk 0:02:58]}  c5 {[%clk 0:02:51]} 4. d5 {[%clk 0:02:55]}  h6 {[%clk 0:02:45]} 5. Nc3 {[%clk 0:02:53]}  exd5 {[%clk 0:02:41]} 6. cxd5 {[%clk 0:02:51]}  d6 {[%clk 0:02:42]} 7. Nf3 {[%clk 0:02:35]}  g5 {[%clk 0:02:36]} 8. Bg3 {[%clk 0:02:13]}  Nh5 {[%clk 0:02:35]} 9. e4 {[%clk 0:02:09]}  Nxg3 {[%clk 0:02:33]} 10. hxg3 {[%clk 0:02:09]}  Bg7 {[%clk 0:02:32]} 11. Nd2 {[%clk 0:02:04]}  Nd7 {[%clk 0:02:32]} 12. Be2 {[%clk 0:01:37]}  a6 {[%clk 0:02:28]} 13. a4 {[%clk 0:01:37]}  Ne5 {[%clk 0:02:23]} 14. f4 {[%clk 0:01:35]}  Ng6 {[%clk 0:02:17]} 15. Bh5 {[%clk 0:01:29]}  gxf4 {[%clk 0:02:12]} 16. Bxg6 {[%clk 0:01:29]}  fxg6 {[%clk 0:02:13]} 17. gxf4 {[%clk 0:01:28]}  O-O {[%clk 0:02:07]} 18. Qf3 {[%clk 0:01:19]}  Rb8 {[%clk 0:02:00]} 19. g3 {[%clk 0:01:01]}  b5 {[%clk 0:01:57]} 20. axb5 {[%clk 0:01:02]}  axb5 {[%clk 0:01:55]} 21. O-O {[%clk 0:00:58]}  Bh3 {[%clk 0:01:44]} 22. Rfe1 {[%clk 0:00:54]}  Qd7 {[%clk 0:01:43]} 23. Kh2 {[%clk 0:00:41]}  Bg4 {[%clk 0:01:38]} 24. Qg2 {[%clk 0:00:40]}  c4 {[%clk 0:01:29]} 25. Nf3 {[%clk 0:00:35]}  b4 {[%clk 0:01:23]} 26. Nd1 {[%clk 0:00:34]}  c3 {[%clk 0:01:18]} 27. bxc3 {[%clk 0:00:33]}  bxc3 {[%clk 0:01:19]} 28. Rc1 {[%clk 0:00:25]}  Rb2 {[%clk 0:01:08]} 29. Re2 {[%clk 0:00:25]}  Rxe2 {[%clk 0:01:00]} 30. Qxe2 {[%clk 0:00:26]}  Rb8 {[%clk 0:00:57]} 31. Nxc3 {[%clk 0:00:17]}  Qc8 {[%clk 0:00:47]} 32. Na2 {[%clk 0:00:14]}  Qd8 {[%clk 0:00:39]} 33. Rc2 {[%clk 0:00:13]}  Rb3 {[%clk 0:00:34]} 34. Qa6 {[%clk 0:00:04]}  Bxf3 {[%clk 0:00:32]} 35. Rc8 {[%clk 0:00:03]}  Rb2+ {[%clk 0:00:30]} 36. Kg1 {[%clk 0:00:03]}  Bd4+ {[%clk 0:00:30]} 37. Kf1 {[%clk 0:00:02]}  Rb1+ {[%clk 0:00:30]} 0-1

[Event "January 9 Early 2024"]
[Site "https://www.chess.com"]
[Date "2024.01.11"]
[Round "3"]
[White "Nakamura, Hikaru"]
[Black "Molina, Roberto Junio Brito"]
[Result "1-0"]
[Board "163"]
[TimeControl "180+1"]
[WhiteFideId "2016192"]
[BlackFideId "2109450"]
[WhiteElo "3262"]
[BlackElo "2805"]
[WhiteTeam "USA"]
[BlackTeam "BRA"]
[WhiteClock "0:00:40"]
[BlackClock "0:00:01"]

1. e4 {[%clk 0:03:00]}  c6 {[%clk 0:03:00]} 2. Nc3 {[%clk 0:03:00]}  d5 {[%clk 0:03:00]} 3. Nf3 {[%clk 0:03:01]}  dxe4 {[%clk 0:03:00]} 4. Nxe4 {[%clk 0:03:01]}  Bg4 {[%clk 0:03:00]} 5. Neg5 {[%clk 0:02:56]}  Bh5 {[%clk 0:02:58]} 6. Be2 {[%clk 0:02:51]}  h6 {[%clk 0:02:41]} 7. Ne4 {[%clk 0:02:46]}  e6 {[%clk 0:02:33]} 8. Ng3 {[%clk 0:02:43]}  Bxf3 {[%clk 0:02:32]} 9. Bxf3 {[%clk 0:02:44]}  Nf6 {[%clk 0:02:32]} 10. d4 {[%clk 0:02:44]}  Bd6 {[%clk 0:02:29]} 11. O-O {[%clk 0:02:44]}  O-O {[%clk 0:02:27]} 12. c3 {[%clk 0:02:45]}  Qc7 {[%clk 0:02:27]} 13. Re1 {[%clk 0:02:42]}  Nbd7 {[%clk 0:02:26]} 14. Nf1 {[%clk 0:02:42]}  Rfe8 {[%clk 0:02:25]} 15. g3 {[%clk 0:02:17]}  Rad8 {[%clk 0:02:24]} 16. Ne3 {[%clk 0:02:09]}  e5 {[%clk 0:02:13]} 17. Nc4 {[%clk 0:02:01]}  Bf8 {[%clk 0:02:04]} 18. Be3 {[%clk 0:01:58]}  exd4 {[%clk 0:01:25]} 19. Bxd4 {[%clk 0:01:53]}  Bc5 {[%clk 0:01:24]} 20. Rxe8+ {[%clk 0:01:47]}  Rxe8 {[%clk 0:01:23]} 21. b4 {[%clk 0:01:48]}  Bxd4 {[%clk 0:01:19]} 22. Qxd4 {[%clk 0:01:49]}  Ne5 {[%clk 0:00:53]} 23. Nxe5 {[%clk 0:01:47]}  Qxe5 {[%clk 0:00:54]} 24. Qd2 {[%clk 0:01:47]}  a6 {[%clk 0:00:46]} 25. Qd3 {[%clk 0:01:43]}  h5 {[%clk 0:00:44]} 26. h4 {[%clk 0:01:41]}  g6 {[%clk 0:00:43]} 27. Rd1 {[%clk 0:01:41]}  Kg7 {[%clk 0:00:43]} 28. Kg2 {[%clk 0:01:41]}  Re7 {[%clk 0:00:43]} 29. Qd8 {[%clk 0:01:34]}  Qc7 {[%clk 0:00:36]} 30. a4 {[%clk 0:01:23]}  Qxd8 {[%clk 0:00:20]} 31. Rxd8 {[%clk 0:01:23]}  Rd7 {[%clk 0:00:21]} 32. Rb8 {[%clk 0:01:21]}  Ng4 {[%clk 0:00:14]} 33. a5 {[%clk 0:01:02]}  Kf6 {[%clk 0:00:13]} 34. Be2 {[%clk 0:00:58]}  Ke5 {[%clk 0:00:12]} 35. Re8+ {[%clk 0:00:57]}  Kd6 {[%clk 0:00:12]} 36. Bxg4 {[%clk 0:00:53]}  hxg4 {[%clk 0:00:13]} 37. f3 {[%clk 0:00:54]}  gxf3+ {[%clk 0:00:12]} 38. Kxf3 {[%clk 0:00:55]}  c5 {[%clk 0:00:07]} 39. g4 {[%clk 0:00:53]}  cxb4 {[%clk 0:00:07]} 40. cxb4 {[%clk 0:00:54]}  Rc7 {[%clk 0:00:05]} 41. h5 {[%clk 0:00:40]}  Rc3+ {[%clk 0:00:01]} 42. Kf4 {[%clk 0:00:41]}  Rh3 {[%clk 0:00:01]} 43. Kg5 {[%clk 0:00:40]}  gxh5 {[%clk 0:00:02]} 44. gxh5 {[%clk 0:00:41]}  Kd5 {[%clk 0:00:01]} 45. h6 {[%clk 0:00:41]}  Kc4 {[%clk 0:00:01]} 46. Re4+ {[%clk 0:00:40]} 1-0

[Event "January 9 Early 2024"]
[Site "https://www.chess.com"]
[Date "2024.01.11"]
[Round "3"]
[White "Daneshvar, Bardiya"]
[Black "Tejedor Fuente, Enrique"]
[Result "1-0"]
[Board "164"]
[TimeControl "180+1"]
[WhiteFideId "12576468"]
[BlackFideId "2299100"]
[WhiteElo "2954"]
[BlackElo "2712"]
[WhiteTeam "IRI"]
[BlackTeam "ESP"]
[WhiteClock "0:01:06"]
[BlackClock "0:00:01"]

1. b3 {[%clk 0:03:00]}  d5 {[%clk 0:02:59]} 2. Bb2 {[%clk 0:03:00]}  e6 {[%clk 0:02:58]} 3. Nf3 {[%clk 0:03:01]}  Nf6 {[%clk 0:02:59]} 4. c4 {[%clk 0:03:01]}  c5 {[%clk 0:02:57]} 5. e3 {[%clk 0:03:01]}  Nc6 {[%clk 0:02:57]} 6. cxd5 {[%clk 0:03:01]}  Nxd5 {[%clk 0:02:53]} 7. Nc3 {[%clk 0:03:01]}  Ndb4 {[%clk 0:02:42]} 8. Qb1 {[%clk 0:03:00]}  Be7 {[%clk 0:02:41]} 9. h4 {[%clk 0:02:58]}  h6 {[%clk 0:02:40]} 10. a3 {[%clk 0:02:53]}  Na6 {[%clk 0:02:38]} 11. Ne4 {[%clk 0:02:46]}  f5 {[%clk 0:02:26]} 12. Ng3 {[%clk 0:02:38]}  O-O {[%clk 0:02:24]} 13. Nh5 {[%clk 0:02:36]}  Rf7 {[%clk 0:02:23]} 14. Bb5 {[%clk 0:02:32]}  Nab8 {[%clk 0:02:08]} 15. Rg1 {[%clk 0:02:23]}  a6 {[%clk 0:01:58]} 16. Be2 {[%clk 0:02:19]}  Nd7 {[%clk 0:01:14]} 17. g4 {[%clk 0:02:19]}  fxg4 {[%clk 0:00:59]} 18. Rxg4 {[%clk 0:02:20]}  Nf6 {[%clk 0:00:59]} 19. Qg6 {[%clk 0:02:20]}  Qf8 {[%clk 0:00:43]} 20. Bd3 {[%clk 0:02:08]}  e5 {[%clk 0:00:30]} 21. Nxf6+ {[%clk 0:01:32]}  Rxf6 {[%clk 0:00:31]} 22. Qh7+ {[%clk 0:01:31]}  Kf7 {[%clk 0:00:31]} 23. Bc4+ {[%clk 0:01:29]}  Ke8 {[%clk 0:00:18]} 24. Rxg7 {[%clk 0:01:27]}  Rxf3 {[%clk 0:00:18]} 25. Rg8 {[%clk 0:01:28]}  Bd7 {[%clk 0:00:13]} 26. Rxf8+ {[%clk 0:01:24]}  Rxf8 {[%clk 0:00:12]} 27. Qxh6 {[%clk 0:01:24]}  Kd8 {[%clk 0:00:10]} 28. Bd5 {[%clk 0:01:22]}  Kc7 {[%clk 0:00:08]} 29. Bxc6 {[%clk 0:01:21]}  Bxc6 {[%clk 0:00:09]} 30. Qe6 {[%clk 0:01:20]}  Rae8 {[%clk 0:00:07]} 31. Qxe5+ {[%clk 0:01:13]}  Kd7 {[%clk 0:00:05]} 32. Qh2 {[%clk 0:01:09]}  Bd6 {[%clk 0:00:04]} 33. Qh3+ {[%clk 0:01:09]}  Kc7 {[%clk 0:00:04]} 34. h5 {[%clk 0:01:10]}  Rg8 {[%clk 0:00:04]} 35. O-O-O {[%clk 0:01:09]}  Bd7 {[%clk 0:00:02]} 36. Qh4 {[%clk 0:01:09]}  Be7 {[%clk 0:00:02]} 37. Bf6 {[%clk 0:01:05]}  Bd6 {[%clk 0:00:02]} 38. h6 {[%clk 0:01:05]}  Rgf8 {[%clk 0:00:02]} 39. h7 {[%clk 0:01:05]}  Be6 {[%clk 0:00:01]} 40. h8=Q {[%clk 0:01:05]}  Rxh8 {[%clk 0:00:02]} 41. Bxh8 {[%clk 0:01:06]}  Bxb3 {[%clk 0:00:02]} 42. Rg1 {[%clk 0:01:06]}  c4 {[%clk 0:00:02]} 43. Bc3 {[%clk 0:01:06]}  Bxa3+ {[%clk 0:00:02]} 44. Kb1 {[%clk 0:01:06]}  Kb8 {[%clk 0:00:02]} 45. Rg7 {[%clk 0:01:06]}  Ka8 {[%clk 0:00:02]} 46. Qh7 {[%clk 0:01:05]}  Rb8 {[%clk 0:00:01]} 47. Rg8 {[%clk 0:01:05]}  Rxg8 {[%clk 0:00:01]} 48. Qxg8+ {[%clk 0:01:05]}  Ka7 {[%clk 0:00:01]} 49. Bd4+ {[%clk 0:01:06]}  b6 {[%clk 0:00:02]} 50. Qf7+ {[%clk 0:01:06]}  Kb8 {[%clk 0:00:01]} 51. Bxb6 {[%clk 0:01:07]}  Bd6 {[%clk 0:00:02]} 52. Qd7 {[%clk 0:01:07]}  Bh2 {[%clk 0:00:01]} 53. f4 {[%clk 0:01:06]}  c3 {[%clk 0:00:01]} 54. Qc7+ {[%clk 0:01:06]} 1-0

[Event "January 9 Early 2024"]
[Site "https://www.chess.com"]
[Date "2024.01.11"]
[Round "3"]
[White "Wendt, Jan-Dietrich"]
[Black "Dahlgren, James Allen"]
[Result "1-0"]
[Board "167"]
[TimeControl "180+1"]
[WhiteFideId "4623797"]
[BlackFideId "22256873"]
[WhiteElo "2356"]
[BlackElo "2088"]
[WhiteTeam "GER"]
[BlackTeam "ESP"]
[WhiteClock "0:00:33"]
[BlackClock "0:00:01"]

1. Nf3 {[%clk 0:03:00]}  d5 {[%clk 0:02:57]} 2. c4 {[%clk 0:02:58]}  c5 {[%clk 0:02:58]} 3. cxd5 {[%clk 0:02:57]}  Nf6 {[%clk 0:02:58]} 4. e4 {[%clk 0:02:57]}  e5 {[%clk 0:02:58]} 5. Nc3 {[%clk 0:02:28]}  Bd6 {[%clk 0:02:57]} 6. Bb5+ {[%clk 0:02:24]}  Nbd7 {[%clk 0:02:55]} 7. a4 {[%clk 0:02:23]}  O-O {[%clk 0:02:55]} 8. O-O {[%clk 0:02:23]}  a6 {[%clk 0:02:52]} 9. Bc4 {[%clk 0:02:21]}  Re8 {[%clk 0:02:46]} 10. d3 {[%clk 0:02:20]}  Nf8 {[%clk 0:02:45]} 11. Be3 {[%clk 0:02:12]}  b6 {[%clk 0:02:40]} 12. Nd2 {[%clk 0:02:02]}  Ng4 {[%clk 0:02:31]} 13. Ba2 {[%clk 0:01:56]}  Nxe3 {[%clk 0:02:14]} 14. fxe3 {[%clk 0:01:55]}  Qg5 {[%clk 0:02:08]} 15. Qf3 {[%clk 0:01:47]}  Ra7 {[%clk 0:01:59]} 16. Nc4 {[%clk 0:01:39]}  Qh6 {[%clk 0:01:47]} 17. Nxb6 {[%clk 0:01:34]}  Ng6 {[%clk 0:01:45]} 18. Bc4 {[%clk 0:01:20]}  Nh4 {[%clk 0:01:37]} 19. Qg3 {[%clk 0:01:19]}  f5 {[%clk 0:01:13]} 20. Nxc8 {[%clk 0:01:17]}  Rxc8 {[%clk 0:00:44]} 21. exf5 {[%clk 0:01:10]}  e4 {[%clk 0:00:43]} 22. Qh3 {[%clk 0:01:06]}  Nf3+ {[%clk 0:00:13]} 23. Rxf3 {[%clk 0:00:52]}  exf3 {[%clk 0:00:12]} 24. Qxh6 {[%clk 0:00:52]}  gxh6 {[%clk 0:00:13]} 25. Ne4 {[%clk 0:00:53]}  Be5 {[%clk 0:00:08]} 26. gxf3 {[%clk 0:00:48]}  Bxb2 {[%clk 0:00:08]} 27. Rb1 {[%clk 0:00:46]}  Be5 {[%clk 0:00:09]} 28. f4 {[%clk 0:00:42]}  Bg7 {[%clk 0:00:06]} 29. f6 {[%clk 0:00:40]}  Bf8 {[%clk 0:00:05]} 30. d6+ {[%clk 0:00:39]}  Kh8 {[%clk 0:00:05]} 31. Rb6 {[%clk 0:00:35]}  Rd8 {[%clk 0:00:03]} 32. Kf2 {[%clk 0:00:34]}  Rad7 {[%clk 0:00:02]} 33. Be6 {[%clk 0:00:33]}  Rxd6 {[%clk 0:00:02]} 34. Nxd6 {[%clk 0:00:33]}  Rxd6 {[%clk 0:00:02]} 35. Rxd6 {[%clk 0:00:33]}  Bxd6 {[%clk 0:00:03]} 36. Kf3 {[%clk 0:00:33]}  a5 {[%clk 0:00:01]} 37. e4 {[%clk 0:00:33]} 1-0

[Event "January 9 Early 2024"]
[Site "https://www.chess.com"]
[Date "2024.01.11"]
[Round "3"]
[White "Blokhin, Sofia"]
[Black "Szalay, Karoly"]
[Result "0-1"]
[Board "168"]
[TimeControl "180+1"]
[WhiteFideId "4508190"]
[BlackFideId "2600544"]
[WhiteElo "2287"]
[BlackElo "2582"]
[WhiteTeam "EST"]
[BlackTeam "CAN"]
[WhiteClock "0:00:09"]
[BlackClock "0:00:17"]

1. d4 {[%clk 0:02:58]}  d5 {[%clk 0:02:59]} 2. c4 {[%clk 0:02:58]}  e6 {[%clk 0:02:58]} 3. Nc3 {[%clk 0:02:57]}  c6 {[%clk 0:02:57]} 4. Nf3 {[%clk 0:02:57]}  Nf6 {[%clk 0:02:56]} 5. e3 {[%clk 0:02:57]}  Nbd7 {[%clk 0:02:56]} 6. Bd3 {[%clk 0:02:57]}  Bd6 {[%clk 0:02:56]} 7. O-O {[%clk 0:02:56]}  O-O {[%clk 0:02:57]} 8. Qc2 {[%clk 0:02:54]}  Qe7 {[%clk 0:02:57]} 9. Re1 {[%clk 0:02:54]}  e5 {[%clk 0:02:57]} 10. dxe5 {[%clk 0:02:50]}  Nxe5 {[%clk 0:02:55]} 11. Nxe5 {[%clk 0:02:45]}  Bxe5 {[%clk 0:02:56]} 12. g3 {[%clk 0:02:13]}  Bg4 {[%clk 0:02:01]} 13. f4 {[%clk 0:01:56]}  Bc7 {[%clk 0:01:49]} 14. e4 {[%clk 0:01:50]}  dxc4 {[%clk 0:01:11]} 15. Bf1 {[%clk 0:01:37]}  b5 {[%clk 0:01:08]} 16. e5 {[%clk 0:01:33]}  Nd5 {[%clk 0:01:07]} 17. Ne4 {[%clk 0:01:25]}  Bb6+ {[%clk 0:01:05]} 18. Kg2 {[%clk 0:01:24]}  Bf5 {[%clk 0:00:28]} 19. b3 {[%clk 0:01:08]}  c3 {[%clk 0:00:21]} 20. Bd3 {[%clk 0:01:01]}  h6 {[%clk 0:00:19]} 21. a3 {[%clk 0:00:59]}  a5 {[%clk 0:00:18]} 22. h3 {[%clk 0:00:57]}  b4 {[%clk 0:00:18]} 23. a4 {[%clk 0:00:56]}  Bxe4+ {[%clk 0:00:17]} 24. Bxe4 {[%clk 0:00:54]}  Rfd8 {[%clk 0:00:18]} 25. g4 {[%clk 0:00:38]}  Rd7 {[%clk 0:00:18]} 26. Bf5 {[%clk 0:00:35]}  Rdd8 {[%clk 0:00:17]} 27. e6 {[%clk 0:00:34]}  fxe6 {[%clk 0:00:17]} 28. Bxe6+ {[%clk 0:00:33]}  Kh8 {[%clk 0:00:17]} 29. Re2 {[%clk 0:00:17]}  Qc5 {[%clk 0:00:17]} 30. Bxd5 {[%clk 0:00:11]}  Qg1+ {[%clk 0:00:16]} 31. Kf3 {[%clk 0:00:12]}  Rxd5 {[%clk 0:00:17]} 32. Be3 {[%clk 0:00:11]}  Qxa1 {[%clk 0:00:16]} 33. Bxb6 {[%clk 0:00:10]}  Qf1+ {[%clk 0:00:17]} 34. Rf2 {[%clk 0:00:09]}  Qxh3+ {[%clk 0:00:17]} 35. Ke2 {[%clk 0:00:09]}  Re8+ {[%clk 0:00:17]} 0-1

[Event "January 9 Early 2024"]
[Site "https://www.chess.com"]
[Date "2024.01.11"]
[Round "3"]
[White "Chemin, Justo Reinaldo"]
[Black "Taboas Rodriguez, Daniel"]
[Result "1/2-1/2"]
[Board "169"]
[TimeControl "180+1"]
[WhiteFideId "2101580"]
[BlackFideId "2208466"]
[WhiteElo "2235"]
[BlackElo "2535"]
[WhiteTeam "BRA"]
[BlackTeam "ESP"]
[WhiteClock "0:00:10"]
[BlackClock "0:00:27"]

1. d4 {[%clk 0:03:00]}  Nf6 {[%clk 0:03:00]} 2. Nf3 {[%clk 0:03:00]}  g6 {[%clk 0:02:59]} 3. Bf4 {[%clk 0:03:01]}  Bg7 {[%clk 0:02:59]} 4. e3 {[%clk 0:03:00]}  O-O {[%clk 0:03:00]} 5. Nbd2 {[%clk 0:03:00]}  c5 {[%clk 0:02:58]} 6. c3 {[%clk 0:02:58]}  b6 {[%clk 0:02:59]} 7. h3 {[%clk 0:02:58]}  Bb7 {[%clk 0:02:59]} 8. Bd3 {[%clk 0:02:58]}  Nc6 {[%clk 0:02:59]} 9. Qe2 {[%clk 0:02:56]}  d6 {[%clk 0:02:59]} 10. Ba6 {[%clk 0:02:55]}  Qc8 {[%clk 0:02:59]} 11. Bxb7 {[%clk 0:02:55]}  Qxb7 {[%clk 0:02:59]} 12. O-O {[%clk 0:02:54]}  Rfe8 {[%clk 0:02:59]} 13. Bh2 {[%clk 0:02:48]}  Rad8 {[%clk 0:02:59]} 14. Rfd1 {[%clk 0:02:45]}  b5 {[%clk 0:02:11]} 15. dxc5 {[%clk 0:02:39]}  dxc5 {[%clk 0:02:11]} 16. Nb3 {[%clk 0:02:39]}  Ne4 {[%clk 0:02:06]} 17. Nfd2 {[%clk 0:02:28]}  Nxd2 {[%clk 0:02:05]} 18. Rxd2 {[%clk 0:02:22]}  Rxd2 {[%clk 0:02:04]} 19. Qxd2 {[%clk 0:02:21]}  Rd8 {[%clk 0:02:04]} 20. Qe2 {[%clk 0:02:12]}  c4 {[%clk 0:01:54]} 21. Nd4 {[%clk 0:02:04]}  e5 {[%clk 0:01:54]} 22. Nxc6 {[%clk 0:02:01]}  Qxc6 {[%clk 0:01:55]} 23. Rd1 {[%clk 0:02:00]}  Rd7 {[%clk 0:01:51]} 24. Bg3 {[%clk 0:01:57]}  e4 {[%clk 0:01:43]} 25. Qc2 {[%clk 0:01:49]}  f5 {[%clk 0:01:41]} 26. b3 {[%clk 0:01:42]}  Rd3 {[%clk 0:01:41]} 27. bxc4 {[%clk 0:01:31]}  Qxc4 {[%clk 0:01:42]} 28. Qe2 {[%clk 0:01:08]}  Bxc3 {[%clk 0:01:39]} 29. Rc1 {[%clk 0:01:04]}  b4 {[%clk 0:01:07]} 30. Qc2 {[%clk 0:00:58]}  a5 {[%clk 0:00:56]} 31. Qa4 {[%clk 0:00:54]}  Qd5 {[%clk 0:00:42]} 32. Qe8+ {[%clk 0:00:48]}  Kg7 {[%clk 0:00:42]} 33. Rxc3 {[%clk 0:00:39]}  bxc3 {[%clk 0:00:42]} 34. Be5+ {[%clk 0:00:39]}  Kh6 {[%clk 0:00:42]} 35. Qf8+ {[%clk 0:00:26]}  Kh5 {[%clk 0:00:42]} 36. g4+ {[%clk 0:00:21]}  fxg4 {[%clk 0:00:36]} 37. hxg4+ {[%clk 0:00:19]}  Kxg4 {[%clk 0:00:33]} 38. Qf4+ {[%clk 0:00:16]}  Kh5 {[%clk 0:00:33]} 39. Qh2+ {[%clk 0:00:14]}  Kg5 {[%clk 0:00:30]} 40. Qf4+ {[%clk 0:00:13]}  Kh5 {[%clk 0:00:31]} 41. Qh2+ {[%clk 0:00:13]}  Kg4 {[%clk 0:00:28]} 42. Qf4+ {[%clk 0:00:10]}  Kh5 {[%clk 0:00:27]} 1/2-1/2